[Event "43. Zurich Weihnachtsopen 2019"]
[Site "Zurich/SUI"]
[Date "2019.12.29"]
[Round "5.4"]
[White "Maki-Uuro, Miikka"]
[Black "Svane, Rasmus"]
[Result "1/2-1/2"]
[ECO "D24"]
[WhiteElo "2331"]
[BlackElo "2597"]
[Annotator "ChessBase"]
[PlyCount "88"]
[EventDate "2019.12.26"]
[EventType "swiss"]
[SourceTitle "playchess.com"]
[Source "ChessBase"]
[SourceQuality "1"]
[TimeControl "40/5400+30:1800+30"]

1. Nf3 {[%emt 0:00:00]} d5 {[%emt 0:00:58]} 2. d4 {[%emt 0:00:29]} Nf6 {[%emt 0:00:43]} 3. c4 {[%emt 0:00:08]} e6 {[%emt 0:00:05]} 4. Nc3 {[%emt 0:00:14]} dxc4 {[%emt 0:01:15]} 5. e4 {[%emt 0:01:11]} b5 {[%emt 0:00:11]} 6. e5 {[%emt 0:00:34]} Nd5 {[%emt 0:00:03]} 7. Nxb5 {[%emt 0:00:31]} Nb6 {[%emt 0:00:06]} 8. Be2 {[%emt 0:01:01]} Nc6 {[%emt 0:00:18]} 9. O-O {[%emt 0:00:58]} Be7 {[%emt 0:00:04]} 10. Be3 {[%emt 0:01:18]} O-O {[%emt 0:00:07]} 11. Nc3 {[%emt 0:01:24]} Rb8 {[%emt 0:02:38]} 12. Na4 {[%emt 0:39:28]} Ba6 {[%emt 0:17:06]} 13. Rc1 {[%emt 0:02:06]} Nxa4 {[%emt 0:14:19]} 14. Qxa4 {[%emt 0:00:14]} Bb5 {[%emt 0:00:27]} 15. Qc2 {[%emt 0:15:32]} Nb4 {[%emt 0:00:56]} 16. Qe4 {[%emt 0:01:38]} Qd5 {[%emt 0:23:17]} 17. Qg4 {[%emt 0:00:37]} f5 {[%emt 0:16:54]} 18. exf6 {[%emt 0:01:59]} Bxf6 {[%emt 0:00:09]} 19. Ne5 {[%emt 0:07:15]} Nd3 {[%emt 0:03:29]} 20. Bf3 {[%emt 0:12:46]} Nxe5 {[%emt 0:03:03]} 21. Bxd5 {[%emt 0:00:10]} Nxg4 {[%emt 0:00:04]} 22. Bxe6+ {[%emt 0:00:03]} Kh8 {[%emt 0:00:14]} 23. Bxg4 {[%emt 0:00:07]} c3 {[%emt 0:00:05]} 24. Rfd1 {[%emt 0:00:06]} cxb2 {[%emt 0:00:13]} 25. Rb1 {[%emt 0:00:08]} Bc4 {[%emt 0:04:44]} 26. Rd2 {[%emt 0:00:34]} c5 {[%emt 0:01:13]} 27. Rdxb2 {[%emt 0:00:22]} Rxb2 {[%emt 0:00:09]} 28. Rxb2 {[%emt 0:00:03]} cxd4 {[%emt 0:00:13]} 29. Rb4 {[%emt 0:00:48]} Bxa2 {[%emt 0:05:52]} 30. Bxd4 {[%emt 0:00:54]} a5 {[%emt 0:00:17]} 31. Rb2 {[%emt 0:00:28]} Bxd4 {[%emt 0:03:37]} 32. Rxa2 {[%emt 0:00:07]} Bb6 {[%emt 0:00:14]} 33. Rc2 {[%emt 0:01:45]} a4 {[%emt 0:00:48]} 34. Rc8 {[%emt 0:00:17]} Bxf2+ {[%emt 0:00:17]} 35. Kf1 {[%emt 0:00:09]} Rxc8 {[%emt 0:00:06]} 36. Bxc8 {[%emt 0:00:05]} a3 {[%emt 0:00:06]} 37. Be6 {[%emt 0:00:04]} Bb6 {[%emt 0:00:06]} 38. Ke2 {[%emt 0:00:42]} g6 {[%emt 0:00:04]} 39. Kd3 {[%emt 0:01:20]} Kg7 {[%emt 0:00:04]} 40. Kc2 {[%emt 0:00:17]} Kf6 {[%emt 0:00:04]} 41. Bd5 {[%emt 0:30:20]} Ke5 {[%emt 0:30:04]} 42. Bb7 {[%emt 0:00:10]} Kd4 {[%emt 0:00:16]} 43. Kb3 {[%emt 0:00:10]} Bc5 {[%emt 0:00:03]} 44. h3 {[%emt 0:00:07]} g5 {[%emt 0:00:06]} 1/2-1/2

[Event "43. Zurich Weihnachtsopen 2019"]
[Site "Zurich/SUI"]
[Date "2019.12.29"]
[Round "5.5"]
[White "Wagner, Dennis"]
[Black "Fecker, Noah"]
[Result "1-0"]
[ECO "D78"]
[WhiteElo "2578"]
[BlackElo "2277"]
[Annotator "ChessBase"]
[PlyCount "35"]
[EventDate "2019.12.26"]
[EventType "swiss"]
[SourceTitle "playchess.com"]
[Source "ChessBase"]
[SourceQuality "1"]
[TimeControl "40/5400+30:1800+30"]

1. d4 {[%emt 0:00:00]} Nf6 {[%emt 0:00:00]} 2. c4 {[%emt 0:00:00]} g6 {[%emt 0:00:00]} 3. g3 {[%emt 0:00:00]} c6 {[%emt 0:00:13]} 4. Bg2 {[%emt 0:00:10]} d5 {[%emt 0:00:34]} 5. Nf3 {[%emt 0:00:11]} Bg7 {[%emt 0:00:14]} 6. Qb3 {[%emt 0:00:20]} Qb6 {[%emt 0:06:06]} 7. O-O {[%emt 0:00:09]} O-O {[%emt 0:00:13]} 8. Nc3 {[%emt 0:00:06]} Rd8 {[%emt 0:02:08]} 9. h3 {[%emt 0:00:10]} h6 {[%emt 0:17:49]} 10. Bd2 {[%emt 0:03:11]} Be6 {[%emt 0:02:58]} 11. c5 {[%emt 0:07:35]} Qxb3 {[%emt 0:03:30]} 12. axb3 {[%emt 0:00:02]} Ne4 {[%emt 0:02:41]} 13. Be3 {[%emt 0:08:37]} Nd7 {[%emt 0:15:09]} 14. b4 {[%emt 0:00:41]} a6 {[%emt 0:01:00]} 15. Ne1 {[%emt 0:11:39]} f5 {[%emt 0:03:29]} 16. Kh2 {[%emt 0:00:58]} Bf7 {[%emt 0:02:00]} 17. f3 {[%emt 0:01:43]} e5 {[%emt 0:15:31]} 18. fxe4 {[%emt 0:18:28]} 1-0

[Event "43. Zurich Weihnachtsopen 2019"]
[Site "Zurich/SUI"]
[Date "2019.12.29"]
[Round "5.6"]
[White "Pikula, Dejan"]
[Black "Paltrinieri, Nicholas"]
[Result "1-0"]
[ECO "C18"]
[WhiteElo "2444"]
[BlackElo "2332"]
[Annotator "NA"]
[PlyCount "143"]
[EventDate "2019.12.26"]
[EventType "swiss"]
[SourceTitle "playchess.com"]
[Source "ChessBase"]
[SourceQuality "1"]
[TimeControl "40/5400+30:1800+30"]

1. e4 {[%emt 0:00:00]} e6 {[%emt 0:00:00]} 2. d4 {[%emt 0:00:00]} d5 {[%emt 0:00:00]} 3. Nc3 {[%emt 0:00:00]} Bb4 {[%emt 0:00:00]} 4. e5 {[%emt 0:00:00]} c5 {[%emt 0:00:00]} 5. a3 {[%emt 0:00:00]} Bxc3+ {[%emt 0:00:00]} 6. bxc3 {[%emt 0:00:03]} Ne7 {[%emt 0:01:13]} 7. Qg4 {[%emt 0:00:41]} Qc7 {[%emt 0:00:28]} 8. Bd3 {[%emt 0:00:59]} cxd4 {[%emt 0:00:53]} 9. Ne2 {[%emt 0:00:32]} dxc3 {[%emt 0:00:05]} 10. Qxg7 {[%emt 0:00:31]} Rg8 {[%emt 0:00:04]} 11. Qxh7 {[%emt 0:00:05]} Qxe5 {[%emt 0:03:19]} 12. Bf4 {[%emt 0:03:37]} Qf6 $1 {[%emt 0:00:35]} 13. h4 {[%emt 0:06:13]} Nd7 {[%emt 0:00:05] C18: French: 3 Nc3 Bb4: Main line: 7 h4 and 7 Qg4} (13... Rxg2 14. Kf1 Rg8 15. Rg1 Rh8 16. Bg5 Rxh7 17. Bxf6 Rh6 18. Bg5 Rh8 19. Bf6 Rh6 20. Bg5 Rh8 21. Bf6 {½-½ (21) Leko,P (2728)-Shirov,A (2713) Saratov 2011}) 14. Bg5 {[%emt 0:02:41]} Qh8 {[%emt 0:00:05]} 15. Qxh8 {[%emt 0:02:01]} Rxh8 {[%emt 0:00:02]} 16. Nxc3 {[%emt 0:00:25]} a6 {[%emt 0:00:04]} 17. f3 {[%emt 0:04:01]} f6 {[%emt 0:00:37]} 18. Be3 $146 {[%emt 0:00:05]} ({Predecessor:} 18. Bd2 Nc5 19. Kf2 {1-0 (50) De Boer,E (2318)-Maatman,N (2354) Groningen 2018}) 18... Ne5 {[%emt 0:05:43]} 19. Be2 {[%emt 0:06:33]} Bd7 {[%emt 0:07:22]} 20. f4 {[%emt 0:03:39]} Nf7 {[%emt 0:14:22]} 21. O-O-O {[%emt 0:11:50]} Rc8 {[%emt 0:02:35]} 22. Kb2 {[%emt 0:01:50]} Nd6 {[%emt 0:03:40]} 23. g4 {[%emt 0:07:08]} Kf7 $11 {[%emt 0:04:42]} 24. h5 {[%emt 0:01:41]} Bb5 {[%emt 0:03:13]} 25. Nxb5 {[%emt 0:01:44]} axb5 {[%emt 0:00:03]} 26. Bd4 {[%emt 0:08:19]} Nc6 {[%emt 0:03:25]} 27. Rh3 {[%emt 0:07:04]} Na5 {[%emt 0:07:46]} 28. g5 {[%emt 0:03:55]} e5 {[%emt 0:01:17]} 29. fxe5 {[%emt 0:00:54]} Nac4+ {[%emt 0:00:23]} 30. Kc1 {[%emt 0:04:57]} fxe5 {[%emt 0:00:04]} 31. Bc3 {[%emt 0:06:15]} d4 {[%emt 0:23:38]} 32. Bb4 {[%emt 0:00:06]} Kg7 {[%emt 0:03:25]} 33. Bd3 {[%emt 0:00:28]} Rhd8 {[%emt 0:02:10]} 34. h6+ {[%emt 0:01:39]} Kh8 {[%emt 0:00:00]} 35. Re1 {[%emt 0:02:28]} e4 {[%emt 0:05:51]} 36. Bxe4 {[%emt 0:02:39]} Nxe4 {[%emt 0:03:40]} 37. Rxe4 {[%emt 0:00:06]} Ne3 {[%emt 0:00:06]} 38. Rhxe3 {[%emt 0:00:39]} dxe3 {[%emt 0:00:06]} 39. Rxe3 {[%emt 0:02:39]} Rc6 {[%emt 0:00:05]} 40. Kb2 {[%emt 0:00:32]} Rd7 {[%emt 0:00:35]} 41. Re5 {[%emt 0:36:07]} Rdc7 {[%emt 0:32:08]} 42. Kb3 {[%emt 0:00:43]} Kh7 {[%emt 0:00:12]} 43. c3 {[%emt 0:02:05]} Kg6 {[%emt 0:00:46]} 44. Rxb5 {[%emt 0:00:09]} Rf7 {[%emt 0:02:06]} 45. c4 {[%emt 0:02:13]} Re6 {[%emt 0:01:37]} 46. Bc3 {[%emt 0:00:21]} Re3 {[%emt 0:00:44]} 47. Kb4 {[%emt 0:00:13]} Rg3 {[%emt 0:00:28]} 48. Bf6 {[%emt 0:00:00]} Rd7 {[%emt 0:00:00]} 49. Rb6 {[%emt 0:00:00]} Kf5 {[%emt 0:00:00]} 50. Bg7 {[%emt 0:00:00]} Rh3 {[%emt 0:00:00]} 51. g6 {[%emt 0:00:00]} Rh1 {[%emt 0:00:00]} 52. Rf6+ {[%emt 0:00:00]} Kg5 {[%emt 0:00:00]} 53. Rf7 {[%emt 0:00:00]} Rd3 {[%emt 0:00:00]} 54. Ka4 {[%emt 0:00:00]} Kxg6 {[%emt 0:00:00]} 55. Rxb7 {[%emt 0:00:00]} Rhh3 {[%emt 0:00:00]} 56. Bf8 {[%emt 0:00:00]} Rdf3 {[%emt 0:00:00]} 57. Rb6+ {[%emt 0:00:00]} Kh7 {[%emt 0:00:00]} 58. Bb4 {[%emt 0:00:00]} Rxh6 {[%emt 0:00:00]} 59. Rxh6+ {[%emt 0:00:00]} Kxh6 {[%emt 0:00:00]} 60. c5 {[%emt 0:00:00]} Kg6 {[%emt 0:00:00]} 61. c6 {[%emt 0:00:00]} Rf1 {[%emt 0:00:00]} 62. Kb5 {[%emt 0:00:00]} Rc1 {[%emt 0:00:00]} 63. Bc5 {[%emt 0:00:00]} Rb1+ {[%emt 0:00:00]} 64. Kc4 {[%emt 0:00:00]} Rc1+ {[%emt 0:00:00]} 65. Kd5 {[%emt 0:00:00]} Rd1+ {[%emt 0:00:00]} 66. Kc4 {[%emt 0:00:00]} Rc1+ {[%emt 0:00:00]} 67. Kb5 {[%emt 0:00:00]} Rb1+ {[%emt 0:00:00]} 68. Ka6 {[%emt 0:00:00]} Rc1 {[%emt 0:00:00]} 69. Kb6 {[%emt 0:00:00]} Rb1+ {[%emt 0:00:00]} 70. Bb4 {[%emt 0:00:00]} Kf7 {[%emt 0:00:00]} 71. c7 {[%emt 0:00:00]} Rc1 {[%emt 0:00:00]} 72. Bc5 {[%emt 0:00:00]} 1-0

[Event "43. Zurich Weihnachtsopen 2019"]
[Site "Zurich/SUI"]
[Date "2019.12.29"]
[Round "5.7"]
[White "Colmenares, Aurelio"]
[Black "Srinath, Rao S.V."]
[Result "0-1"]
[ECO "C02"]
[WhiteElo "2305"]
[BlackElo "2397"]
[Annotator "NA"]
[PlyCount "110"]
[EventDate "2019.12.26"]
[EventType "swiss"]
[SourceTitle "playchess.com"]
[Source "ChessBase"]
[SourceQuality "1"]
[TimeControl "40/5400+30:1800+30"]

1. e4 {[%emt 0:00:00]} e6 {[%emt 0:00:00]} 2. d4 {[%emt 0:00:00]} d5 {[%emt 0:00:00]} 3. e5 {[%emt 0:00:00]} c5 {[%emt 0:00:15]} 4. c3 {[%emt 0:00:06]} Bd7 {[%emt 0:01:08]} 5. Nf3 {[%emt 0:00:10]} Qb6 {[%emt 0:00:13]} 6. Be2 {[%emt 0:09:24]} Nc6 {[%emt 0:08:55]} 7. O-O {[%emt 0:00:21]} Nh6 {[%emt 0:01:04]} 8. Na3 {[%emt 0:12:58]} cxd4 {[%emt 0:06:50]} 9. cxd4 {[%emt 0:00:06]} Nf5 {[%emt 0:00:27]} 10. Nc2 {[%emt 0:00:59]} Be7 {[%emt 0:00:37]} 11. b3 {[%emt 0:07:38]} h5 {[%emt 0:03:13] C02: French: Advance Variation} (11... Rc8 12. Rb1 Nb4 13. Nxb4 Qxb4 14. a4 Qb6 15. Kh1 Bb4 16. Bd3 a5 17. Be3 Rc3 18. g4 Nxe3 19. fxe3 {1-0 (32) Li,H (2369)-Zhang,P (2605) China 2010}) 12. Re1 $146 {[%emt 0:03:42]} ({Predecessor:} 12. Bb2 g5 13. Nfe1 g4 14. Kh1 f6 15. Bd3 O-O-O 16. Bxf5 exf5 17. Nd3 Rdg8 18. Nf4 Qd8 19. Ne3 {1-0 (35) Trukhin,D (1797)-Kyshtymov,D (1905) Irkutsk 2016}) 12... a5 {[%emt 0:03:27]} 13. Rb1 {[%emt 0:16:58]} Rc8 {[%emt 0:04:21]} 14. h3 {[%emt 0:06:09]} Na7 {[%emt 0:03:08]} 15. Bg5 {[%emt 0:05:54]} Bb5 {[%emt 0:04:01]} 16. Bxe7 {[%emt 0:02:27]} Kxe7 {[%emt 0:02:52]} 17. a4 {[%emt 0:03:34]} Bxe2 18. Rxe2 {[%emt 0:00:30]} Rc7 {[%emt 0:09:59]} 19. Qd2 {[%emt 0:01:37]} Rhc8 {[%emt 0:01:45]} 20. Qg5+ {[%emt 0:00:07]} Kf8 {[%emt 0:01:22]} 21. Rb2 {[%emt 0:03:16]} Rc3 {[%emt 0:06:33]} 22. Qxh5 {[%emt 0:05:49]} Rxb3 {[%emt 0:03:49]} 23. Rxb3 {[%emt 0:00:05]} Qxb3 {[%emt 0:00:05]} 24. Ne3 {[%emt 0:00:28]} Nh6 {[%emt 0:04:12]} 25. Ng4 {[%emt 0:01:47]} Qb1+ {[%emt 0:02:22]} 26. Kh2 {[%emt 0:01:55]} Qg6 {[%emt 0:05:31]} 27. Qxg6 {[%emt 0:00:39]} fxg6 {[%emt 0:00:05]} 28. Rb2 {[%emt 0:05:42]} Rc7 {[%emt 0:03:29]} 29. Ne3 {[%emt 0:02:37]} Nc8 {[%emt 0:03:37]} 30. g4 {[%emt 0:01:18]} b6 {[%emt 0:01:28]} 31. Kg3 {[%emt 0:03:30]} Ke7 {[%emt 0:01:30]} 32. Kf4 {[%emt 0:00:15]} Nf7 $14 {[%emt 0:00:46]} 33. Rc2 {[%emt 0:00:17]} Kd7 {[%emt 0:03:48]} 34. Ng5 {[%emt 0:04:10]} Nd8 {[%emt 0:01:03]} 35. h4 {[%emt 0:01:10]} Ne7 {[%emt 0:10:06]} 36. f3 {[%emt 0:01:37]} Ndc6 {[%emt 0:01:17]} 37. Rd2 {[%emt 0:00:21]} Rc8 {[%emt 0:00:17]} 38. Nc2 {[%emt 0:00:25]} Nb4 {[%emt 0:01:40]} 39. Na3 {[%emt 0:00:23]} Rc1 {[%emt 0:02:45]} 40. Nb5 {[%emt 0:00:05]} Ra1 {[%emt 0:00:56]} 41. Nh7 {[%emt 0:31:09]} Rxa4 {[%emt 0:04:12]} 42. Nd6 {[%emt 0:00:00]} Ra3 {[%emt 0:06:53]} 43. Nf8+ {[%emt 0:00:00]} Kc6 {[%emt 0:00:07]} 44. Nxe6 {[%emt 0:00:00]} a4 {[%emt 0:01:30]} 45. Rd1 {[%emt 0:00:00]} Rc3 {[%emt 0:02:27]} 46. Ra1 {[%emt 0:00:00]} a3 {[%emt 0:01:48]} 47. Nd8+ {[%emt 0:00:00]} Kd7 {[%emt 0:00:06]} 48. Nb5 {[%emt 0:00:00]} Rd3 {[%emt 0:05:03]} 49. Nxa3 {[%emt 0:00:00]} Rxd4+ {[%emt 0:03:07]} 50. Kg5 {[%emt 0:00:00]} Kxd8 {[%emt 0:00:05]} 51. Nb5 {[%emt 0:00:00]} Rc4 {[%emt 0:01:29]} 52. Ra7 {[%emt 0:00:00]} Nbc6 {[%emt 0:03:46]} 53. Ra8+ {[%emt 0:00:00]} Kd7 {[%emt 0:00:04]} 54. f4 {[%emt 0:00:00]} Rb4 {[%emt 0:03:57]} 55. Nd6 {[%emt 0:00:00]} Nd4 {[%emt 0:00:07]} 0-1

[Event "43. Zurich Weihnachtsopen 2019"]
[Site "Zurich/SUI"]
[Date "2019.12.29"]
[Round "5.8"]
[White "Curien, Nicolas"]
[Black "Janoszka, Arnd"]
[Result "0-1"]
[ECO "B12"]
[WhiteElo "2257"]
[BlackElo "2353"]
[Annotator "NA"]
[PlyCount "96"]
[EventDate "2019.12.26"]
[EventType "swiss"]
[SourceTitle "playchess.com"]
[Source "ChessBase"]
[SourceQuality "1"]
[TimeControl "40/5400+30:1800+30"]

1. d4 {[%emt 0:00:00]} d6 {[%emt 0:10:45]} 2. e4 {[%emt 0:00:00]} c6 {[%emt 0:02:27]} 3. Nc3 {[%emt 0:00:24]} b5 {[%emt 0:00:30]} 4. Be3 {[%emt 0:07:59]} Bb7 {[%emt 0:02:41]} 5. f4 {[%emt 0:06:14]} Nd7 {[%emt 0:05:07]} 6. e5 {[%emt 0:04:28]} e6 {[%emt 0:13:47]} 7. Nf3 {[%emt 0:02:34]} Ne7 {[%emt 0:05:32]} 8. Bd3 {[%emt 0:10:39]} Nb6 {[%emt 0:08:46]} 9. O-O {[%emt 0:04:17]} Ned5 {[%emt 0:02:56]} 10. Nxd5 {[%emt 0:01:43]} Nxd5 {[%emt 0:00:54]} 11. Bd2 {[%emt 0:04:25]} g6 {[%emt 0:02:23]} 12. Qe1 {[%emt 0:03:52]} Bg7 {[%emt 0:05:33]} 13. Kh1 {[%emt 0:09:37]} O-O {[%emt 0:03:30]} 14. Ng5 {[%emt 0:01:21]} Ne7 {[%emt 0:05:19]} 15. exd6 {[%emt 0:11:27]} Nf5 {[%emt 0:06:02]} 16. Bxf5 {[%emt 0:05:02]} exf5 {[%emt 0:01:03]} 17. Bb4 {[%emt 0:14:44]} Bxd4 {[%emt 0:01:30]} 18. Rd1 {[%emt 0:00:16]} c5 {[%emt 0:01:25]} 19. c3 {[%emt 0:02:09]} Qxd6 {[%emt 0:00:45]} 20. cxd4 {[%emt 0:01:14]} cxb4 {[%emt 0:00:20]} 21. Qe5 {[%emt 0:01:51]} Qd5 {[%emt 0:00:44]} 22. Qxd5 {[%emt 0:02:58]} Bxd5 {[%emt 0:00:02]} 23. Rfe1 {[%emt 0:02:14]} Rac8 {[%emt 0:01:10]} 24. Rc1 {[%emt 0:00:54]} Bxa2 {[%emt 0:00:29]} 25. Kg1 {[%emt 0:00:13]} Bd5 {[%emt 0:00:38]} 26. Rc5 {[%emt 0:00:36]} Rxc5 {[%emt 0:02:24]} 27. dxc5 {[%emt 0:00:02]} Rc8 $19 {[%emt 0:00:11]} 28. Rc1 {[%emt 0:00:27]} b3 {[%emt 0:01:56]} 29. Nf3 {[%emt 0:00:21]} Bc4 {[%emt 0:02:31]} 30. Nd4 {[%emt 0:01:05]} Rxc5 {[%emt 0:01:21]} 31. Nxb3 {[%emt 0:00:06]} Rd5 {[%emt 0:00:48]} 32. Na5 {[%emt 0:00:06]} Rd4 {[%emt 0:03:19]} 33. Nc6 {[%emt 0:00:59]} Rd2 {[%emt 0:03:52]} 34. Nxa7 {[%emt 0:00:38]} Rxb2 {[%emt 0:00:13]} 35. Nc6 {[%emt 0:00:04]} Kg7 {[%emt 0:00:27]} 36. Nd4 {[%emt 0:01:37]} Bd5 {[%emt 0:01:44]} 37. Rc2 {[%emt 0:00:56]} Rxc2 {[%emt 0:01:42]} 38. Nxc2 {[%emt 0:00:02]} Kf6 {[%emt 0:00:28]} 39. Kf2 {[%emt 0:00:02]} Ke7 {[%emt 0:00:30]} 40. g3 {[%emt 0:00:38]} Kd6 {[%emt 0:00:08]} 41. Ke3 {[%emt 0:31:10]} Kc5 {[%emt 0:30:42]} 42. Kd2 {[%emt 0:00:00]} b4 {[%emt 0:00:00]} 43. Ne3 {[%emt 0:00:00]} Be4 {[%emt 0:00:00]} 44. g4 {[%emt 0:00:00]} fxg4 {[%emt 0:00:00]} 45. Nxg4 {[%emt 0:00:00]} Kd4 {[%emt 0:00:00]} 46. Nf6 {[%emt 0:00:00]} Bf5 {[%emt 0:00:00]} 47. Kc1 {[%emt 0:00:00]} h5 {[%emt 0:00:00]} 48. h4 {[%emt 0:00:00]} Be6 {[%emt 0:00:00]} 0-1

[Event "43. Zurich Weihnachtsopen 2019"]
[Site "Zurich/SUI"]
[Date "2019.12.29"]
[Round "6.2"]
[White "Srinath, Rao S.V."]
[Black "Kunin, Vitaly"]
[Result "0-1"]
[ECO "B07"]
[WhiteElo "2397"]
[BlackElo "2538"]
[Annotator "ChessBase"]
[PlyCount "58"]
[EventDate "2019.12.26"]
[EventType "swiss"]
[SourceTitle "playchess.com"]
[Source "ChessBase"]
[SourceQuality "1"]
[TimeControl "40/5400+30:1800+30"]

1. e4 {[%emt 0:00:00]} d6 {[%emt 0:00:00]} 2. d4 {[%emt 0:01:42]} Nf6 {[%emt 0:00:14]} 3. Nc3 {[%emt 0:01:07]} e5 {[%emt 0:00:26]} 4. Nge2 {[%emt 0:03:13]} Nbd7 {[%emt 0:01:36]} 5. g3 {[%emt 0:00:36]} c6 {[%emt 0:00:39]} 6. Bg2 {[%emt 0:00:05]} Be7 {[%emt 0:04:16]} 7. a4 {[%emt 0:05:33]} Qc7 {[%emt 0:00:11]} 8. h3 {[%emt 0:00:36]} h5 {[%emt 0:00:32]} 9. a5 {[%emt 0:04:41]} Rb8 {[%emt 0:05:44]} 10. Be3 {[%emt 0:02:41]} b5 {[%emt 0:00:29]} 11. axb6 {[%emt 0:00:23]} axb6 {[%emt 0:01:13]} 12. O-O {[%emt 0:02:51]} b5 {[%emt 0:01:09]} 13. f4 {[%emt 0:01:28]} O-O {[%emt 0:02:07]} 14. Qd2 {[%emt 0:03:28]} b4 {[%emt 0:09:43]} 15. Nd1 {[%emt 0:07:29]} c5 {[%emt 0:03:24]} 16. d5 {[%emt 0:09:14]} b3 {[%emt 0:07:39]} 17. f5 {[%emt 0:06:28]} bxc2 {[%emt 0:03:20]} 18. Qxc2 {[%emt 0:00:07]} Nh7 {[%emt 0:07:18]} 19. Nec3 {[%emt 0:06:12]} Bg5 {[%emt 0:05:18]} 20. Qe2 {[%emt 0:03:11]} Ndf6 {[%emt 0:01:17]} 21. Bxg5 {[%emt 0:00:48]} Nxg5 {[%emt 0:00:11]} 22. Qe3 {[%emt 0:00:33]} Ngh7 {[%emt 0:00:31]} 23. Bf3 {[%emt 0:00:32]} Qe7 {[%emt 0:07:28]} 24. Be2 {[%emt 0:15:23]} Kh8 {[%emt 0:05:26]} 25. Qd2 {[%emt 0:04:41]} Rb4 {[%emt 0:04:01]} 26. Bd3 {[%emt 0:03:22]} Bd7 {[%emt 0:08:29]} 27. Ne3 {[%emt 0:01:57]} Rfb8 {[%emt 0:01:21]} 28. Nc4 {[%emt 0:01:03]} g6 {[%emt 0:02:44]} 29. fxg6 {[%emt 0:03:26]} fxg6 {[%emt 0:00:15]} 0-1

[Event "43. Zurich Weihnachtsopen 2019"]
[Site "Zurich/SUI"]
[Date "2019.12.29"]
[Round "6.4"]
[White "Zhang, Xiaopeng"]
[Black "Grover, Sahaj"]
[Result "1/2-1/2"]
[ECO "D37"]
[WhiteElo "2339"]
[BlackElo "2508"]
[Annotator "RC"]
[PlyCount "74"]
[EventDate "2019.12.26"]
[EventType "swiss"]
[SourceTitle "playchess.com"]
[Source "ChessBase"]
[SourceQuality "1"]
[TimeControl "40/5400+30:1800+30"]

1. d4 {[%emt 0:00:00]} d5 {[%emt 0:00:00]} 2. c4 {[%emt 0:00:00]} e6 {[%emt 0:00:00]} 3. Nc3 {[%emt 0:00:00]} a6 {[%emt 0:03:39]} 4. cxd5 {[%emt 0:01:26]} exd5 {[%emt 0:00:06]} 5. Nf3 {[%emt 0:00:07]} Nf6 {[%emt 0:00:05]} 6. Bg5 {[%emt 0:00:09]} Be6 {[%emt 0:00:05]} 7. e3 {[%emt 0:00:32]} Nbd7 {[%emt 0:00:05]} 8. Bd3 {[%emt 0:00:11]} Bd6 {[%emt 0:00:06]} 9. O-O {[%emt 0:00:49]} c6 {[%emt 0:00:06]} 10. Qc2 {[%emt 0:04:04]} Qc7 {[%emt 0:00:19]} 11. Bh4 {[%emt 0:03:13]} Bg4 {[%emt 0:00:56]} 12. Bg3 {[%emt 0:00:43]} O-O {[%emt 0:00:59]} 13. Bxd6 {[%emt 0:03:11]} Qxd6 {[%emt 0:00:06]} 14. Nh4 {[%emt 0:00:21]} Rfe8 {[%emt 0:05:48]} 15. h3 {[%emt 0:05:50]} Be6 {[%emt 0:05:14]} 16. f4 {[%emt 0:00:54]} Nf8 {[%emt 0:00:22]} 17. Rae1 {[%emt 0:03:54]} c5 {[%emt 0:03:23]} 18. dxc5 {[%emt 0:10:48]} Qxc5 {[%emt 0:00:21]} 19. Nf3 {[%emt 0:00:18]} Bd7 {[%emt 0:03:57]} 20. Ne5 {[%emt 0:05:01]} Rad8 {[%emt 0:00:45]} 21. Qf2 {[%emt 0:04:02]} Ng6 {[%emt 0:05:34]} 22. Bxg6 {[%emt 0:03:45]} hxg6 {[%emt 0:00:11]} 23. Rc1 {[%emt 0:00:15]} Qb6 {[%emt 0:04:06]} 24. Rfd1 {[%emt 0:00:37]} Bf5 {[%emt 0:01:04]} 25. Rd4 {[%emt 0:00:37]} Ne4 {[%emt 0:01:04]} 26. Nxe4 {[%emt 0:02:12]} Bxe4 {[%emt 0:00:11]} 27. Qd2 {[%emt 0:04:45]} Rc8 {[%emt 0:06:54]} 28. a4 {[%emt 0:07:58]} Rxc1+ {[%emt 0:05:30]} 29. Qxc1 {[%emt 0:00:06]} Qe6 {[%emt 0:00:06]} 30. Kh2 {[%emt 0:04:59]} Rc8 {[%emt 0:01:00]} 31. Qd1 {[%emt 0:00:29]} g5 {[%emt 0:05:43]} 32. Rd2 {[%emt 0:04:07]} gxf4 {[%emt 0:14:02]} 33. exf4 {[%emt 0:00:22]} f6 {[%emt 0:00:05]} 34. Nf3 {[%emt 0:06:04]} Qf5 {[%emt 0:01:42]} 35. g3 {[%emt 0:00:46]} Rc4 {[%emt 0:00:34]} 36. Nd4 {[%emt 0:02:41]} Qc8 {[%emt 0:00:16]} 37. Ne2 {[%emt 0:07:48]} Bc2 {[%emt 0:13:01]} 1/2-1/2

[Event "43. Zurich Weihnachtsopen 2019"]
[Site "Zurich/SUI"]
[Date "2019.12.29"]
[Round "6.8"]
[White "Florescu, Codrut-Constantin"]
[Black "Loeffler, Markus"]
[Result "1-0"]
[ECO "A48"]
[WhiteElo "2293"]
[BlackElo "2343"]
[Annotator "NA"]
[PlyCount "71"]
[EventDate "2019.12.26"]
[EventType "swiss"]
[SourceTitle "playchess.com"]
[Source "ChessBase"]
[SourceQuality "1"]
[TimeControl "40/5400+30:1800+30"]

1. d4 {[%emt 0:00:00]} Nf6 {[%emt 0:00:00]} 2. Nf3 {[%emt 0:00:30]} g6 {[%emt 0:00:30]} 3. Bg5 {[%emt 0:00:30]} Bg7 {[%emt 0:00:06]} 4. Nbd2 {[%emt 0:00:00]} O-O {[%emt 0:00:16]} 5. c3 {[%emt 0:00:00]} c5 {[%emt 0:08:09]} 6. e3 {[%emt 0:00:00]} cxd4 {[%emt 0:03:27]} 7. cxd4 {[%emt 0:00:44]} b6 {[%emt 0:03:03]} 8. Rc1 {[%emt 0:00:13]} Bb7 {[%emt 0:01:05]} 9. Bd3 {[%emt 0:05:00]} Nc6 {[%emt 0:11:10]} 10. a3 {[%emt 0:02:10]} Rc8 {[%emt 0:14:33]} 11. O-O {[%emt 0:00:46]} h6 {[%emt 0:05:47]} 12. Bxf6 {[%emt 0:03:20]} Bxf6 {[%emt 0:00:40]} 13. Qe2 {[%emt 0:00:11]} d5 {[%emt 0:07:48]} 14. Bb5 {[%emt 0:07:36]} Qd6 {[%emt 0:01:47]} 15. Nb3 {[%emt 0:08:34]} Rc7 {[%emt 0:01:56]} 16. Rc3 {[%emt 0:18:58]} Rfc8 {[%emt 0:02:51]} 17. Rfc1 {[%emt 0:01:07]} Nb8 {[%emt 0:03:57]} 18. Qd2 {[%emt 0:00:26]} a6 {[%emt 0:03:11]} 19. Be2 {[%emt 0:01:33]} Rxc3 {[%emt 0:00:34]} 20. Rxc3 {[%emt 0:00:06]} Rxc3 {[%emt 0:00:19]} 21. Qxc3 {[%emt 0:00:06]} Qc6 {[%emt 0:01:04]} 22. Qxc6 {[%emt 0:03:33]} Bxc6 {[%emt 0:00:09]} 23. Nc1 {[%emt 0:00:26]} e6 {[%emt 0:03:54]} 24. Kf1 {[%emt 0:02:15]} Be7 {[%emt 0:01:05]} 25. Ne5 {[%emt 0:04:01]} Be8 {[%emt 0:01:03]} 26. Bd3 {[%emt 0:00:27]} Kg7 {[%emt 0:00:34]} 27. f4 {[%emt 0:00:20]} f6 {[%emt 0:01:20]} 28. Nf3 {[%emt 0:00:03]} g5 {[%emt 0:06:27]} 29. g3 {[%emt 0:00:04]} Bd6 {[%emt 0:01:39]} 30. Kf2 {[%emt 0:00:16]} a5 {[%emt 0:02:46]} 31. Na2 {[%emt 0:04:01]} Bc6 {[%emt 0:05:51]} 32. Nc3 {[%emt 0:00:11]} Kf7 {[%emt 0:00:16]} 33. Nb5 {[%emt 0:05:32]} Be7 {[%emt 0:00:19]} 34. g4 {[%emt 0:00:55]} Nd7 {[%emt 0:01:29]} 35. Na7 {[%emt 0:02:29]} Bb7 {[%emt 0:00:47]} 36. f5 {[%emt 0:00:47]} 1-0